lending/lending_fUSD_20240522
["ID","MTS","AMOUNT","RATE_DAILY","PERIOD"]
[327740685,1716414639429,-243.41296162,0.0001299,2]
[327740686,1716414639440,-243.41296162,0.0001299,2]
[327740688,1716414639450,-243.41296162,0.0001299,2]
[327740690,1716414639460,-243.41296162,0.0001299,2]
[327740692,1716414639470,-243.41296162,0.0001299,2]
[327740694,1716414639480,-243.41296162,0.0001299,2]
[327740696,1716414639490,-243.41296162,0.0001299,2]
[327740697,1716414639500,-243.41296162,0.0001299,2]
[327740698,1716414639509,-243.41296162,0.0001299,2]
[327740699,1716414639518,-243.41296162,0.0001299,2]
[327740700,1716414639528,-243.41296162,0.0001299,2]
[327740701,1716414639537,-243.41296162,0.0001299,2]
[327740702,1716414639547,-243.41296162,0.0001299,2]
[327740703,1716414639557,-243.41296162,0.0001299,2]
[327740704,1716414639566,-243.41296162,0.0001299,2]
[327740705,1716414639576,-243.41296162,0.0001299,2]
[327740706,1716414639585,-243.41296162,0.0001299,2]
[327740707,1716414639594,-243.41296162,0.0001299,2]
[327740708,1716414639604,-243.41296162,0.0001299,2]
[327740709,1716414639614,-243.41296162,0.0001299,2]
[327740710,1716414639623,-131338.71870128,0.00012999,2]
[327740711,1716414639722,-243.41296162,0.0001299,2]
[327740712,1716414639732,-2612.37440564,0.00012999,2]
[327740713,1716414639743,-1392.6297,0.00012999,2]
[327740714,1716414639754,-4869.2735,0.00012999,2]
[327740724,1716414640325,-243.41296162,0.0001299,2]
[327740725,1716414640334,-243.41296162,0.0001299,2]
[327740726,1716414640344,-243.41296162,0.0001299,2]
[327740727,1716414640353,-243.41296162,0.0001299,2]
[327740728,1716414640363,-243.41296162,0.0001299,2]
[327740729,1716414640372,-1111.81125274,0.00012999,2]
[327740730,1716414640517,-243.41296162,0.0001299,2]
[327740731,1716414640527,-243.41296162,0.0001299,2]
[327740732,1716414640538,-1719.32962116,0.00012999,2]
[327740733,1716414640549,-573.37954002,0.00012999,2]
[327740734,1716414640560,-2187.7683599,0.00012999,2]
[327740735,1716414640572,-539.46318433,0.00012999,2]
[327740759,1716414643155,-243.41296162,0.0001299,2]
[327740762,1716414643166,-243.41296162,0.0001299,2]
[327740763,1716414643175,-243.41296162,0.0001299,2]
[327740764,1716414643185,-243.41296162,0.0001299,2]
[327740765,1716414643194,-243.41296162,0.0001299,2]
[327740766,1716414643203,-243.41296162,0.0001299,2]
[327740767,1716414643213,-13390.2023908,0.00012999,2]
[327740768,1716414643223,-150.0,0.00012999,2]
[327740769,1716414643233,-20124.31619907,0.00013,2]
[327740770,1716414643244,-530.421667,0.00013,2]
[327740771,1716414643256,-6364.39687151,0.00013,2]
[327740772,1716414643267,-5610.61863221,0.00013,2]
[327740773,1716414643279,-17058.41804389,0.00013,2]
[327740774,1716414643325,-658.35,0.00013,2]
[327740775,1716414643337,-1226.99999763,0.00013,2]
[327740776,1716414643348,-451.5,0.00013,2]
[327740777,1716414643435,-1742.87296462,0.00013,2]
[327740778,1716414643447,-1295.82764162,0.00013,2]
[327740779,1716414643458,-130539.41888432,0.00013,2]
[327740780,1716414643530,-3376.50031774,0.00013,2]
[327740781,1716414643542,-1424.44855236,0.00013,2]
[327740782,1716414643553,-1268.2984146,0.00013,2]
[327740783,1716414643565,-1204.17105637,0.00013,2]
[327740788,1716414646280,-2826.6702,0.00013,2]
[327740789,1716414646291,-17317.73703848,0.00013,2]
[327740790,1716414646302,-113164.50548357,0.00013,2]
[327740791,1716414646314,-1185.49436781,0.00013,2]
[327740792,1716414646325,-3483.97404,0.00013,2]
[327740872,1716414661941,155.33627281,0.00011698,2]
[327740873,1716414711804,150.01,0.00021589,30]
[327740874,1716414712189,150.01,0.00027616,30]
[327740882,1716414791037,167.052306,0.00028,34]
[327740885,1716414794420,167.052306,0.00028,33]
[327740886,1716414797380,167.052306,0.00028,32]
[327740887,1716414800661,167.052306,0.00028,31]
[327740888,1716414804207,167.052306,0.00028,30]
[327740892,1716414827196,701.953689,0.0001276,2]
[327740894,1716414830457,199.052306,0.00028,30]
[327740895,1716414833629,199.052306,0.00028,31]
[327740896,1716414836407,199.052306,0.00028,32]
[327740897,1716414839427,199.052306,0.00028,33]
[327740898,1716414842688,199.052306,0.00028,34]
[327740899,1716414853444,157.052306,0.00031,120]
[327740900,1716414873260,151.052306,0.00031,120]
[327740901,1716414888562,151.052306,0.00031,120]
[327740902,1716414889693,151.052306,0.00031,120]
[327740903,1716414890912,151.052306,0.00031,120]
[327740904,1716414905428,150.5,0.0001958,15]
[327740905,1716414906627,150.5,0.0001957,15]
[327740906,1716414907779,150.5,0.0001956,15]
[327740907,1716414966063,164.22435049,0.000128,2]
[327740908,1716414995818,8365.07,0.00012769,2]
[327740909,1716415031601,318.81723087,0.000128,2]
[327740910,1716415041412,321.46,0.00010804,2]
[327740911,1716415056389,2986.45,0.00012447,2]
[327740912,1716415067422,1027.4565,0.00012799,2]
[327740913,1716415085558,1000.0,0.00012799,2]
[327740914,1716415094983,489.06715365,0.000128,2]
[327740915,1716415098140,155.0,0.000128,2]
[327740916,1716415098966,250.0,0.00012658,2]
[327740917,1716415099443,155.0,0.000128,2]
[327740918,1716415102349,1248.98663554,0.000128,2]
[327740919,1716415108506,790.00185035,0.000128,2]
[327740920,1716415110784,155.0,0.000128,2]
[327740921,1716415111194,623.795218,0.000128,2]
[327740922,1716415112681,361.22735375,0.000128,2]
[327740923,1716415118672,474.3,0.00012662,2]
[327740924,1716415119836,4430.75681299,0.000128,2]
[327740925,1716415124795,296.73263169,0.00011531,2]
[327740926,1716415131728,1214.89267019,0.000128,2]
[327740927,1716415145140,5276.18337802,0.000128,2]
[327740928,1716415189278,150.01,0.00021589,30]
[327740929,1716415196484,2047.38,0.0001265,2]
[327740930,1716415197560,318.81723084,0.00012799,2]
[327740931,1716415243237,256.70854924,0.00012799,2]
[327740932,1716415264430,150.5,0.0001958,15]
[327740933,1716415264846,256.5,0.0001957,15]
[327740934,1716415299004,189.15,0.00012199,2]
[327740935,1716415335611,452.93729917,0.00012737,2]
[327740936,1716415355553,318.81723084,0.00012799,2]
[327740937,1716415375723,151.052306,0.00028,30]
[327740938,1716415380046,151.052306,0.00028,31]
[327740939,1716415384307,151.052306,0.00028,32]
[327740940,1716415388758,151.052306,0.00028,33]
[327740941,1716415394100,151.052306,0.00028,34]
[327740942,1716415395387,239.78,0.00012454,2]
[327740943,1716415395860,239.78,0.00012488,2]
[327740944,1716415396094,239.78,0.00012522,2]
[327740945,1716415401579,239.78,0.00012556,2]
[327740946,1716415401788,239.78,0.0001259,2]
[327740947,1716415402026,239.78,0.00012625,2]
[327740948,1716415402269,239.78,0.00012659,2]
[327740949,1716415402482,239.78,0.00012693,2]
[327740950,1716415402715,239.78,0.00012727,2]
[327740951,1716415402936,239.78,0.00012761,2]
[327740952,1716415403143,239.78,0.00012795,2]
[327740953,1716415411169,2500.0,0.00012799,2]
[327740954,1716415428469,151.052306,0.00031,120]
[327740955,1716415455503,316.978998,0.00012609,2]
[327740956,1716415466719,155.0,0.000128,2]
[327740957,1716415500120,318.81723084,0.00012799,2]
[327740958,1716415573723,305.38,0.00010082,2]
[327740959,1716415573873,305.38,0.00012346,2]
[327740960,1716415595010,250.0,0.00012,2]
[327740961,1716415597484,1990.63,0.00012,2]
[327740962,1716415635812,318.81723084,0.00012799,2]
[327740963,1716415645324,205.3668394,0.00012799,2]
[327740964,1716415674770,150.01,0.00021589,30]
[327740965,1716415690364,7605.87925164,0.000128,2]
[327740966,1716415732541,279.53519759,0.000128,2]
[327740967,1716415761014,318.81723084,0.00012799,2]
[327740968,1716415832122,-263.35626,0.0001281,2]
[327740975,1716415832282,-61.64085042,0.0001281,2]
[327740976,1716415832293,-545.67389031,0.00012811,2]
[327740977,1716415832306,-339.04706187,0.00012811,2]
[327740978,1716415832445,-3990.39052706,0.00012811,2]
[327740997,1716415838251,-690.76432697,0.00012811,2]
[327740998,1716415838261,-49.19521953,0.00012812,2]
[327740999,1716415838274,-106.0601143,0.00012812,2]
[327741000,1716415838283,-270.74804263,0.00012812,2]
[327741001,1716415838293,-725.29161969,0.00012812,2]
[327741002,1716415838302,-894.45132496,0.00012812,2]
[327741003,1716415838311,-155.59740862,0.00012812,2]
[327741004,1716415838321,-666.77547695,0.00012812,2]
[327741005,1716415838331,-3116.3581712,0.00012812,2]
[327741006,1716415838341,-282.80328744,0.00012812,2]
[327741007,1716415838350,-291.53456264,0.00012812,2]
[327741008,1716415838360,-480.28343884,0.00012813,2]
[327741009,1716415838369,-328.81213102,0.00012813,2]
[327741010,1716415838381,-3212.42301623,0.00012813,2]
[327741011,1716415838390,-35526.31974552,0.00012814,2]
[327741012,1716415838400,-205.36683939,0.00012824,2]
[327741013,1716415838409,-239.78,0.0001283,2]
[327741014,1716415838419,-205.36683939,0.0001285,2]
[327741015,1716415838431,-239.78,0.00012864,2]
[327741016,1716415838440,-1698.7805,0.0001287,2]
[327741017,1716415838450,-499.99,0.0001287,2]
[327741018,1716415838459,-205.36683939,0.00012875,2]
[327741019,1716415838468,-1382.72,0.0001289,2]
[327741020,1716415838480,-155.88,0.0001289,2]
[327741021,1716415838490,-719.89183977,0.00012897,2]
[327741022,1716415838499,-14592.44126202,0.00012897,2]
[327741023,1716415838512,-1141.360068,0.00012897,2]
[327741024,1716415838522,-10529.4669443,0.00012898,2]
[327741025,1716415838531,-239.735568,0.00012898,2]
[327741026,1716415838540,-8605.16,0.00012898,2]
[327741028,1716415838550,-8283.16,0.00012898,2]
[327741030,1716415838559,-239.78,0.00012898,2]
[327741032,1716415838568,-1000.0,0.00012899,2]
[327741034,1716415838577,-472868.70625132,0.00012899,2]
[327741036,1716415838692,-3620.66591591,0.00012899,2]
[327741037,1716415838704,-1248.4983,0.00012899,2]
[327741072,1716415840625,-211142.36116223,0.00012899,2]
[327741074,1716415840635,-1598.93,0.00012899,2]
[327741076,1716415840645,-217182.49350065,0.000129,2]
[327741078,1716415840657,-813.0450005,0.000129,2]
[327741142,1716415843379,-1791.45712628,0.000129,2]
[327741143,1716415843412,-565.14405757,0.000129,2]
[327741144,1716415843574,-2863.91579321,0.000129,2]
[327741145,1716415843585,-21783.94452179,0.000129,2]
[327741146,1716415843595,-189.63171885,0.000129,2]
[327741147,1716415843605,-205.36683939,0.000129,2]
[327741148,1716415843614,-583.66314699,0.000129,2]
[327741149,1716415843624,-195.537172,0.00012901,2]
[327741150,1716415843633,-975.46585204,0.00012901,2]
[327741151,1716415843643,-256.47900411,0.00012901,2]
[327741152,1716415843652,-8978.16598252,0.00012901,2]
[327741153,1716415843662,-239.78,0.00012932,2]
[327741154,1716415843673,-239.78,0.00012966,2]
[327741155,1716415843682,-171.47681867,0.00012993,2]
[327741156,1716415843691,-155.0,0.00012997,2]
[327741157,1716415843701,-284.23501662,0.00012997,2]
[327741158,1716415843710,-155.0,0.00012997,2]
[327741159,1716415843719,-235.75592062,0.00012997,2]
[327741160,1716415843729,-208.25486787,0.00012997,2]
[327741161,1716415843738,-155.0,0.00012997,2]
[327741162,1716415843747,-893.71353405,0.00012997,2]
[327741163,1716415843756,-195.39796037,0.00012997,2]
[327741164,1716415843767,-910.32345355,0.00012997,2]
[327741166,1716415843776,-155.58162898,0.00012997,2]
[327741167,1716415843785,-155.69597943,0.00012997,2]
[327741169,1716415843795,-303.83347949,0.00012997,2]
[327741170,1716415843804,-305.95729831,0.00012997,2]
[327741171,1716415843813,-228.92674142,0.00012997,2]
[327741172,1716415843823,-156.69539022,0.00012997,2]
[327741173,1716415843832,-155.0,0.00012997,2]
[327741174,1716415843842,-2185.84495628,0.00012997,2]
[327741175,1716415843851,-207.32803127,0.00012997,2]
[327741176,1716415843862,-316.07383662,0.00012997,2]
[327741177,1716415843871,-318.04989705,0.00012997,2]
[327741178,1716415843881,-167.63437116,0.00012997,2]
[327741179,1716415843890,-423.30398004,0.00012997,2]
[327741180,1716415843900,-262.98011562,0.00012997,2]
[327741181,1716415843911,-161.92497137,0.00012997,2]
[327741182,1716415843920,-404.77250217,0.00012997,2]
[327741183,1716415843930,-324.91436525,0.00012997,2]
[327741184,1716415843940,-150.0,0.00012999,2]
[327741185,1716415843950,-150.0,0.00012999,2]
[327741186,1716415843959,-311513.25096578,0.00013,2]
[327741187,1716415843971,-372080.33726844,0.00013,2]
[327741193,1716415847973,-4270.15185033,0.00013,2]
[327741195,1716415847986,-457.5525014,0.00013,2]
[327741197,1716415847998,-415.7195867,0.00013,2]
[327741200,1716415848157,-585.22668101,0.00013,2]
[327741201,1716415848169,-163679.618349,0.00013,2]
[327741202,1716415848181,-2055.95637963,0.00013,2]
[327741203,1716415848273,-62699.56443491,0.00013,2]
[327741204,1716415848285,-5164.53098448,0.00013,2]
[327741205,1716415848296,-51956.38423839,0.00013,2]
[327741206,1716415848308,-1885.12773,0.00013,2]
[327741207,1716415848344,-7540.57926203,0.00013,2]
[327741208,1716415848356,-3474.1344,0.00013,2]
[327741209,1716415868503,1566.03064875,0.00012681,2]
[327741212,1716415906393,159.86,0.00012062,2]
[327741213,1716415906593,159.86,0.00012188,2]
[327741214,1716415906922,159.86,0.00012314,2]
[327741215,1716415907130,159.86,0.00012439,2]
[327741216,1716415907341,159.86,0.00012565,2]
[327741217,1716415907578,159.86,0.00012691,2]
[327741225,1716415977140,245000.0,0.00012799,2]
[327741226,1716415983693,150.5,0.00019654,15]
[327741227,1716415984236,263.0,0.00019644,15]
[327741228,1716415985764,327.0,0.00019654,15]
[327741229,1716415986263,327.0,0.00019644,15]
[327741230,1716415986749,327.0,0.00019634,15]
[327741233,1716416036331,819.045632,0.00012769,2]
[327741234,1716416039637,151.052307,0.00031,120]
[327741235,1716416050918,151.052307,0.00028,30]
[327741236,1716416058810,157.052307,0.00028,30]
[327741237,1716416061633,157.052307,0.00028,31]
[327741238,1716416064415,157.052307,0.00028,32]
[327741239,1716416067204,157.052307,0.00028,33]
[327741240,1716416070726,157.052307,0.00028,34]
[327741241,1716416079044,167.052307,0.00028,34]
[327741242,1716416085498,167.052307,0.00028,32]
[327741243,1716416103856,172.0,0.0001959,15]
[327741244,1716416104375,172.0,0.0001958,15]
[327741245,1716416104962,172.0,0.0001957,15]
[327741246,1716416105100,228.0,0.0001959,15]
[327741247,1716416105582,228.0,0.0001958,15]
[327741248,1716416106096,228.0,0.0001957,15]
[327741249,1716416109615,167.052307,0.00028,33]
[327741250,1716416116488,157.052307,0.00028,32]
[327741251,1716416119267,157.052307,0.00028,31]
[327741252,1716416122400,157.052307,0.00028,30]
[327741253,1716416151458,154.81,0.00021589,30]
[327741254,1716416151837,154.81,0.00025356,30]
[327741259,1716416225984,160.0,0.00019716,15]
[327741260,1716416226584,160.0,0.00019706,15]
[327741261,1716416227216,160.0,0.00019696,15]
[327741265,1716416254869,282.52,0.00011904,2]
[327741266,1716416262682,595.31,0.000128,2]
[327741271,1716416346303,150.5,0.0001959,15]
[327741272,1716416346396,150.5,0.0001958,15]
[327741273,1716416346996,150.5,0.0001957,15]
[327741275,1716416464404,150.5,0.0001959,15]
[327741276,1716416464987,150.5,0.0001958,15]
[327741277,1716416465641,150.5,0.0001957,15]
[327741278,1716416465954,150.5,0.0001959,15]
[327741279,1716416466552,150.5,0.0001958,15]
[327741280,1716416467153,150.5,0.0001957,15]
[327741283,1716416585998,222.0,0.00019716,15]
[327741285,1716416716177,154.81,0.00021589,30]
[327741286,1716416716553,154.81,0.00025894,30]
[327741287,1716416733670,157.052307,0.00028,30]
[327741288,1716416757044,157.052307,0.00028,31]
[327741289,1716416759670,157.052307,0.00028,32]
[327741291,1716416779214,157.052307,0.00028,33]
[327741292,1716416790079,284.05,0.0001118,2]
[327741293,1716416814073,194.052307,0.00031,120]
[327741294,1716416825243,150.5,0.0001959,15]
[327741295,1716416825712,150.5,0.0001958,15]
[327741296,1716416826190,150.5,0.0001957,15]
[327741299,1716416891204,189.15,0.00012705,2]
[327741300,1716416980514,978.18796677,0.00012799,2]
[327741329,1716417032598,-318.81723084,0.00012859,2]
[327741330,1716417032610,-1415.65041,0.0001287,2]
[327741331,1716417032620,-1025.84142177,0.00012898,2]
[327741332,1716417032629,-2679.65093739,0.00012899,2]
[327741333,1716417032659,-1151.96077803,0.00012899,2]
[327741334,1716417032671,-1956.37593354,0.00012899,2]
[327741335,1716417032682,-1578.18428588,0.00012899,2]
[327741336,1716417032694,-7688.27965313,0.00012899,2]
[327741337,1716417032705,-3795.6677,0.00012899,2]
[327741338,1716417032716,-2418.1409,0.00012899,2]
[327741358,1716417037978,978.18796677,0.000128,2]
[327741369,1716417039183,-319.077,0.00012899,2]
[327741370,1716417039195,-1492.0,0.00012899,2]
[327741375,1716417040616,-611.87547606,0.00012899,2]
[327741376,1716417040816,-1451.8542977,0.00012899,2]
[327741377,1716417040999,-641.28763667,0.00012899,2]
[327741378,1716417041012,-873.94199045,0.00012899,2]
[327741379,1716417041024,-2772.92501895,0.00012899,2]
[327741381,1716417041185,-37056.27913701,0.00012899,2]
[327741383,1716417041198,-10859.67599997,0.00012899,2]
[327741385,1716417041210,-1977.01821,0.00012899,2]
[327741390,1716417043388,-78415.31971213,0.00012899,2]
[327741394,1716417043398,-245000.0,0.000129,2]
[327741396,1716417043407,-185.93691833,0.000129,2]
[327741398,1716417043416,-164.22435047,0.000129,2]
[327741399,1716417043425,-650.32449801,0.000129,2]
[327741401,1716417043434,-1645.31,0.00012915,2]
[327741403,1716417043444,-16263.0,0.00012925,2]
[327741405,1716417043453,-170.98600274,0.00012959,2]
[327741406,1716417043462,-223.62815808,0.00012959,2]
[327741407,1716417043472,-650.31056804,0.00012959,2]
[327741408,1716417043481,-28711.29706064,0.00012988,2]
[327741413,1716417043631,-9632.64451324,0.00012988,2]
[327741414,1716417043840,-3001.1262129,0.00012988,2]
[327741415,1716417043854,-392.16226011,0.00012988,2]
[327741416,1716417043867,-5999.81601999,0.00012988,2]
[327741428,1716417046621,-324.68798294,0.00012959,2]
[327741429,1716417046633,-6647.36799773,0.00012959,2]
[327741430,1716417046643,-4188.67344227,0.00012988,2]
[327741431,1716417046655,-1046.05201815,0.00012988,2]
[327741432,1716417046842,-4889.50320945,0.00012988,2]
[327741435,1716417046854,-2728.7147724,0.00012988,2]
[327741441,1716417048687,1001.4516,0.000128,2]
[327741442,1716417057076,7155.5551,0.00012799,2]
[327741453,1716417183625,150.5,0.0001958,15]
[327741454,1716417184167,150.5,0.0001957,15]
[327741455,1716417184375,150.5,0.0001958,15]
[327741456,1716417184636,150.5,0.0001956,15]
[327741457,1716417184873,158.5,0.0001957,15]
[327741460,1716417225650,200.02,0.00021589,30]
[327741461,1716417226013,200.02,0.00025135,30]
[327741462,1716417304962,150.5,0.0001958,15]
[327741463,1716417305542,150.5,0.0001957,15]
[327741464,1716417306478,150.5,0.0001956,15]
[327741465,1716417353565,285.26,0.00011793,2]
[327741466,1716417425967,150.5,0.0001958,15]
[327741467,1716417426555,150.5,0.0001957,15]
[327741468,1716417427172,239.0,0.0001956,15]
[327741470,1716417437815,9481.79,0.00012579,2]
[327741471,1716417535212,250.0,0.00012475,2]
[327741473,1716417544545,150.5,0.0001958,15]
[327741474,1716417545260,150.5,0.0001957,15]
[327741475,1716417545836,150.5,0.0001956,15]
[327741477,1716417591319,900.0,0.00031,120]
[327741478,1716417602688,900.0,0.00028,30]
[327741479,1716417629782,433.052307,0.00031,120]
[327741480,1716417652840,397.052307,0.00031,120]
[327741482,1716417665616,577.052307,0.00031,120]
[327741483,1716417682272,157.052307,0.00028,30]
[327741484,1716417685257,157.052307,0.00028,31]
[327741485,1716417687880,157.052307,0.00028,32]
[327741486,1716417687938,177.79,0.00021589,30]
[327741487,1716417688511,177.79,0.00025135,30]
[327741488,1716417690807,157.052307,0.00028,33]
[327741489,1716417695742,157.052307,0.00028,34]
[327741490,1716417706118,193.052307,0.00028,34]
[327741491,1716417709260,193.052307,0.00028,33]
[327741492,1716417712443,193.052307,0.00028,32]
[327741493,1716417715479,193.052307,0.00028,31]
[327741494,1716417718618,193.052307,0.00028,30]
[327741496,1716417763441,337.052307,0.00031,120]
[327741497,1716417770593,311.052307,0.00031,120]
[327741498,1716417780091,277.052307,0.00031,120]
[327741500,1716417810506,757.052307,0.00031,120]
[327741501,1716417821004,227.052307,0.00031,120]
[327741502,1716417848269,181.052307,0.00031,120]
[327741504,1716417905001,150.5,0.0001958,15]
[327741505,1716417905473,223.0,0.0001957,15]
[327741506,1716418129040,1000.0,0.00012347,2]
[327741507,1716418145769,200.0,0.00012347,2]
[327741509,1716418163726,250.0,0.00012347,2]
[327741510,1716418175580,250.0,0.00012347,2]
[327741511,1716418183295,1698.58,0.00012347,2]
[327741513,1716418224241,158.03,0.00021589,30]
[327741514,1716418224329,158.03,0.00025135,30]
[327741516,1716418231668,-326.03857362,0.00012852,2]
[327741518,1716418231679,-4.75142638,0.00012853,2]
[327741521,1716418231692,-1376.71188136,0.00012853,2]
[327741523,1716418231702,-1179.70868,0.0001286,2]
[327741524,1716418231712,-721.96718528,0.00012887,2]
[327741525,1716418231722,-1386.7685,0.00012888,2]
[327741526,1716418231732,-185.93691833,0.000129,2]
[327741527,1716418231741,-162.94341069,0.000129,2]
[327741528,1716418231751,-152.86815809,0.000129,2]
[327741529,1716418231761,-311.74964206,0.000129,2]
[327741530,1716418231770,-5985.44398836,0.000129,2]
[327741531,1716418231780,-170.98600274,0.000129,2]
[327741532,1716418231790,-155.0,0.00012986,2]
[327741533,1716418231800,-155.0,0.00012986,2]
[327741534,1716418231810,-2498.39615519,0.00012987,2]
[327741535,1716418231819,-340.83774651,0.00012987,2]
[327741536,1716418231832,-178.58526803,0.00012987,2]
[327741537,1716418231841,-4449.6987424,0.00012988,2]
[327741538,1716418231851,-8970.77794603,0.00012988,2]
[327741539,1716418231863,-496.29675969,0.00012988,2]
[327741540,1716418231874,-92.03491548,0.00012988,2]
[327741541,1716418231884,-322.17996144,0.00012988,2]
[327741542,1716418231977,-1271.46687446,0.00012988,2]
[327741543,1716418232195,-221.719532,0.00012988,2]
[327741544,1716418232209,-129.96420811,0.00012988,2]
[327741545,1716418233737,-33584.22158609,0.00012988,2]
[327741546,1716418233748,-12149.2913585,0.00012988,2]
[327741547,1716418233758,-14073.5974227,0.00012988,2]
[327741548,1716418233768,-18624.09719251,0.00012988,2]
[327741549,1716418233780,-670.78694448,0.00012988,2]
[327741550,1716418233792,-324.10000261,0.00012988,2]
[327741551,1716418233804,-584.31,0.00012988,2]
[327741552,1716418233815,-14735.2293508,0.00012988,2]
[327741553,1716418233825,-2191.01411234,0.00012988,2]
[327741554,1716418233836,-315.0,0.00012988,2]
[327741555,1716418233847,-25129.80632482,0.00012988,2]
[327741556,1716418233858,-462.6301991,0.00012988,2]
[327741557,1716418233895,-408.35893457,0.00012988,2]
[327741558,1716418233907,-296.53135641,0.00012988,2]
[327741559,1716418233919,-568.36,0.00012988,2]
[327741560,1716418233930,-1416.87629935,0.00012988,2]
[327741576,1716418237778,-927.60194168,0.00012988,2]
[327741579,1716418237791,-7395.35491006,0.00012988,2]
[327741580,1716418237802,-666.23816241,0.00012988,2]
[327741581,1716418237813,-3140.10265864,0.00012988,2]
[327741582,1716418238024,-14229.39953452,0.00012988,2]
[327741585,1716418238036,-466.07570855,0.00012988,2]
[327741609,1716418239843,-15763.49400002,0.00012988,2]
[327741611,1716418242032,-337.3518643,0.00012988,2]
[327741625,1716418242617,-599.74127609,0.00012988,2]
[327741626,1716418242630,-7913.66848587,0.00012988,2]
[327741627,1716418242643,-25870.72412217,0.00012988,2]
[327741628,1716418242652,-1039.13105243,0.00012997,2]
[327741629,1716418242662,-499.99,0.00012997,2]
[327741630,1716418242671,-382.35898938,0.00012998,2]
[327741631,1716418242681,-378.8511649,0.00012999,2]
[327741632,1716418242691,-1151.96077803,0.00012999,3]
[327741633,1716418242700,-270.45540645,0.00012999,2]
[327741634,1716418242710,-5873.01300745,0.00012999,2]
[327741636,1716418242719,-1048.90290251,0.00012999,3]
[327741638,1716418242727,-472.85658248,0.00012999,3]
[327741661,1716418243138,-576.04632003,0.00012999,3]
[327741662,1716418243148,-1048.90290251,0.00012999,3]
[327741663,1716418243158,-1048.90290251,0.00012999,3]
[327741664,1716418243167,-1048.90290251,0.00012999,3]
[327741665,1716418243178,-1048.90290252,0.00012999,3]
[327741666,1716418243191,-255.32,0.00012999,2]
[327741667,1716418243201,-150.0,0.00012999,2]
[327741668,1716418243211,-12154.09642589,0.00013,2]
[327741669,1716418243290,-9034.81242994,0.00013,2]
[327741670,1716418243302,-13032.10281974,0.00013,2]
[327741672,1716418243312,-6137.51297911,0.00013,2]
[327741674,1716418243324,-98958.02720722,0.00013,2]
[327741711,1716418247932,-363.46318231,0.00012997,2]
[327741712,1716418247942,-326.03857362,0.00012997,2]
[327741713,1716418247953,-6972.18758213,0.00013,2]
[327741714,1716418247967,-507402.69706596,0.00013,2]
[327741715,1716418247979,-1107.08,0.00013,2]
[327741716,1716418248172,-3201.6,0.00013,2]
[327741781,1716418258687,2890.9082,0.00012756,2]
[327741782,1716418380148,301.67,0.00010557,2]
[327741783,1716418386784,159.63814161,0.00012799,2]
[327741784,1716418398714,150.0,0.00012326,2]
[327741785,1716418399536,23900.0,0.00012326,2]
[327741786,1716418419112,337.052307,0.00031,120]
[327741787,1716418435013,313.052307,0.00031,120]
[327741788,1716418442449,163.052307,0.00031,120]
[327741789,1716418467936,151.052307,0.00031,120]
[327741790,1716418480807,151.052307,0.00028,30]
[327741791,1716418483763,151.052307,0.00028,31]
[327741792,1716418486480,151.052307,0.00028,32]
[327741793,1716418489161,151.052307,0.00028,33]
[327741794,1716418490350,175.65,0.00012388,2]